bitfinex/quotes_SOLUSD_20230905
["timestamp","ask_amount","ask_price","bid_price","bid_amount"]
[1693910941744,92.6594,19.531,19.52,48.69146082]
[1693910942126,7.985,19.536,19.52,48.69146082]
[1693910942330,55.0,19.535,19.52,48.69146082]
[1693910942743,55.0,19.536,19.52,48.69146082]
[1693910942941,153.9975,19.536,19.52,48.69146082]
[1693910943931,98.9975,19.536,19.52,48.69146082]
[1693910945634,98.9975,19.536,19.52,80.41146082]
[1693910947226,186.28286543,19.537,19.52,80.41146082]
[1693910947427,186.28286543,19.537,19.52,106.02596341]
[1693910952453,7.985,19.536,19.52,48.69146082]
[1693910956245,31.72,19.53,19.52,48.69146082]
[1693910956448,7.988,19.529,19.518,23.27478687]
[1693910956645,7.988,19.529,19.519,20.0]
[1693910956950,31.72,19.53,19.519,27.992]
[1693910957152,39.707,19.53,19.519,27.992]
[1693910957848,31.72,19.53,19.519,27.992]
[1693910958548,92.8049,19.534,19.52,31.72]
[1693910958847,92.8049,19.534,19.524,7.99]
[1693910971661,92.8049,19.534,19.524,49.97360654]
[1693910975454,186.28286543,19.537,19.524,49.97360654]
[1693910982666,94.1864,19.536,19.524,49.97360654]
[1693910985168,94.1864,19.536,19.525,55.0]
[1693910985356,94.1864,19.536,19.528,7.988]
[1693910987561,94.1864,19.536,19.529,55.0]
[1693910990877,7.984,19.538,19.529,55.0]
[1693911000369,7.984,19.538,19.526,7.988]
[1693911005588,7.984,19.539,19.526,7.988]
[1693911008678,7.984,19.539,19.526,7.988]
[1693911009078,186.28286543,19.541,19.53,31.72]
[1693911009276,186.28286543,19.541,19.533,33.788]
[1693911009678,186.28286543,19.541,19.533,7.986]
[1693911015497,186.28286543,19.541,19.532,7.986]
[1693911022691,186.28286543,19.541,19.532,49.65317869]
[1693911026897,186.28286543,19.541,19.532,7.986]
[1693911045720,186.28286543,19.541,19.53,41.51074717]
[1693911046021,186.28286543,19.541,19.523,25.61450259]
[1693911046022,186.28286543,19.541,19.532,7.986]
[1693911049725,107.5535,19.544,19.532,7.986]
[1693911049925,4.94461036,19.543,19.532,7.986]
[1693911052221,4.94461036,19.543,19.532,33.789]
[1693911054227,4.94461036,19.543,19.532,7.986]
[1693911055615,12.92661036,19.543,19.532,7.986]
[1693911056434,4.94461036,19.543,19.532,7.986]
[1693911060128,12.92661036,19.543,19.532,7.986]
[1693911062231,4.94461036,19.543,19.532,7.986]
[1693911068140,12.92661036,19.543,19.532,7.986]
[1693911073743,4.94461036,19.543,19.532,7.986]
[1693911076449,4.94461036,19.543,19.533,55.0]
[1693911076660,4.94461036,19.543,19.536,33.783]
[1693911080039,4.94461036,19.543,19.536,7.985]
[1693911089569,4.94461036,19.545,19.536,7.985]
[1693911091663,4.94461036,19.545,19.535,7.985]
[1693911092157,12.92561036,19.545,19.535,7.985]
[1693911092668,4.94461036,19.545,19.535,7.985]
[1693911116085,4.94461036,19.545,19.536,55.0]
[1693911116283,4.94461036,19.545,19.538,7.984]
[1693911117475,4.94461036,19.545,19.539,75.0]
[1693911117678,4.94461036,19.545,19.54,7.983]
[1693911117878,4.94461036,19.549,19.54,7.983]
[1693911120279,4.94461036,19.552,19.54,7.983]
[1693911122787,4.94461036,19.552,19.544,7.981]
[1693911122985,4.94461036,19.552,19.542,7.982]
[1693911138589,4.94461036,19.552,19.543,55.0]
[1693911138786,4.94461036,19.552,19.544,7.981]
[1693911152711,4.94461036,19.552,19.545,28.62046879]
[1693911153010,4.94461036,19.552,19.546,7.981]
[1693911158003,7.977,19.557,19.546,7.981]
[1693911158309,4.94461036,19.556,19.546,7.981]
[1693911158708,4.94461036,19.558,19.546,7.981]
[1693911158911,4.94461036,19.558,19.549,7.979]
[1693911159211,4.94461036,19.558,19.55,28.61314898]
[1693911159422,4.94461036,19.558,19.55,36.59214898]
[1693911159717,4.94461036,19.558,19.551,28.61168547]
[1693911160012,4.94461036,19.558,19.551,36.58968547]
[1693911160204,4.94461036,19.558,19.552,28.6102221]
[1693911160820,12.92061036,19.558,19.552,28.6102221]
[1693911161116,4.94461036,19.558,19.552,28.6102221]
[1693911161706,12.92061036,19.558,19.552,28.6102221]
[1693911170608,4.94461036,19.558,19.552,28.6102221]
[1693911207948,24.94461036,19.559,19.552,28.6102221]
[1693911223256,4.94461036,19.559,19.552,28.6102221]
[1693911223552,4.94461036,19.568,19.552,36.5882221]
[1693911223758,7.972,19.567,19.557,7.976]
[1693911223957,4.94461036,19.566,19.557,7.976]
[1693911225961,4.94461036,19.569,19.558,20.0]
[1693911226149,4.94461036,19.569,19.561,7.974]
[1693911228571,31.72,19.57,19.561,7.974]
[1693911229068,4.94461036,19.569,19.561,7.974]
[1693911249180,7.969,19.575,19.561,7.974]
[1693911249379,4.94461036,19.574,19.561,7.974]
[1693911249562,12.91361036,19.574,19.561,7.974]
[1693911249873,4.94461036,19.574,19.561,7.974]
[1693911250075,4.94461036,19.575,19.561,7.974]
[1693911257573,4.94461036,19.576,19.561,7.974]
[1693911260483,12.91361036,19.576,19.561,7.974]
[1693911265285,4.94461036,19.576,19.561,33.58850259]
[1693911265872,12.91361036,19.576,19.561,33.58850259]
[1693911266885,4.94461036,19.576,19.561,33.58850259]
[1693911268589,12.91361036,19.576,19.561,33.58850259]
[1693911274691,12.91161036,19.579,19.562,25.61450259]
[1693911274892,4.94461036,19.579,19.567,7.972]
[1693911275297,4.94461036,19.579,19.571,7.97]
[1693911277303,12.91161036,19.579,19.558,157.985]
[1693911277505,12.91161036,19.579,19.567,7.972]
[1693911277699,12.91161036,19.579,19.568,20.0]
[1693911277905,12.91161036,19.579,19.568,27.971]
[1693911278898,12.91161036,19.579,19.566,7.972]
[1693911279099,12.91161036,19.579,19.562,25.763]
[1693911279296,12.91161036,19.579,19.561,56.232]
[1693911279606,12.91161036,19.579,19.567,7.972]
[1693911282009,105.67561036,19.579,19.567,7.972]
[1693911287313,55.0,19.578,19.565,7.973]
[1693911287514,7.969,19.575,19.56,40.43353783]
[1693911287807,7.972,19.567,19.56,7.975]
[1693911288204,2.48014601,19.568,19.56,7.975]
[1693911288401,7.972,19.569,19.56,7.975]
[1693911288610,2.93154795,19.568,19.56,7.975]
[1693911288908,7.972,19.569,19.56,7.975]
[1693911291716,3.09766407,19.568,19.56,7.975]
[1693911292511,31.72,19.57,19.56,33.741]
[1693911292512,3.09766407,19.569,19.56,33.741]
[1693911303020,66.06866407,19.569,19.558,7.976]
[1693911303222,11.06866407,19.569,19.559,27.975]
[1693911303622,7.971,19.569,19.559,27.975]
[1693911303821,2.47946567,19.568,19.559,27.975]
[1693911304021,7.972,19.568,19.559,27.975]
[1693911324439,2.77939613,19.567,19.559,27.975]
[1693911324644,7.972,19.568,19.559,27.975]
[1693911333354,31.72,19.57,19.559,27.975]
[1693911335745,2.50816047,19.569,19.559,27.975]
[1693911336053,2.52631375,19.569,19.559,27.975]
[1693911345458,17.96780582,19.569,19.559,27.975]
[1693911345660,23.41249207,19.569,19.559,27.975]
[1693911346345,2.49324742,19.568,19.559,27.975]
[1693911346564,23.41249207,19.569,19.559,27.975]
[1693911347552,64.72879251,19.569,19.559,27.975]
[1693911351767,2.60499449,19.568,19.559,27.975]
[1693911351957,3.30351282,19.572,19.559,27.975]
[1693911352962,66.45619583,19.579,19.559,27.975]
[1693911352963,4.94461036,19.574,19.56,31.72]
[1693911353167,4.94461036,19.575,19.564,33.734]
[1693911353471,4.94461036,19.577,19.564,33.734]
[1693911353771,12.91261036,19.577,19.564,33.734]
[1693911361069,12.91261036,19.577,19.564,7.973]
[1693911365871,4.94461036,19.577,19.565,20.0]
[1693911366077,4.94461036,19.578,19.568,33.726]
[1693911366277,4.94461036,19.579,19.569,20.0]
[1693911366476,4.94461036,19.579,19.572,33.721]
[1693911366877,4.94461036,19.579,19.572,7.97]
[1693911372761,4.94461036,19.581,19.572,7.97]
[1693911373881,12.91061036,19.581,19.57,7.97]
[1693911376495,4.94461036,19.581,19.57,7.97]
[1693911376779,12.91061036,19.582,19.57,7.97]
[1693911380478,4.94461036,19.582,19.57,39.69]
[1693911380675,4.94461036,19.585,19.57,39.69]
[1693911380977,7.965,19.585,19.57,39.69]
[1693911381185,4.94461036,19.584,19.57,39.69]
[1693911382576,12.90961036,19.584,19.57,39.69]
[1693911382974,12.90961036,19.584,19.57,7.97]
[1693911383174,31.72,19.58,19.567,40.98518139]
[1693911383377,7.968,19.577,19.568,20.0]
[1693911383576,4.94461036,19.576,19.57,7.971]
[1693911383788,7.966,19.582,19.57,7.971]
[1693911384079,4.94461036,19.581,19.57,7.971]
[1693911384884,4.94461036,19.581,19.571,55.0]
[1693911385289,4.94461036,19.581,19.571,62.97]
[1693911385585,31.72,19.58,19.571,55.0]
[1693911385771,4.94461036,19.579,19.57,55.0]
[1693911385974,4.94461036,19.579,19.57,62.971]
[1693911386280,12.91161036,19.579,19.569,55.0]
[1693911387692,12.91161036,19.579,19.569,62.971]
[1693911388077,12.91161036,19.579,19.569,55.0]
[1693911388379,4.94461036,19.579,19.569,62.971]
[1693911392093,12.91161036,19.579,19.569,62.971]
[1693911394886,55.0,19.578,19.565,41.52478282]
[1693911395087,7.969,19.575,19.562,41.22165474]
[1693911395281,31.72,19.57,19.56,7.975]
[1693911395480,4.94461036,19.569,19.56,7.975]
[1693911395681,31.72,19.57,19.56,7.975]
[1693911396694,4.94461036,19.572,19.56,7.975]
[1693911397196,12.91461036,19.572,19.56,7.975]
[1693911397397,7.97,19.572,19.56,7.975]
[1693911397898,4.94461036,19.571,19.56,7.975]
[1693911398091,7.97,19.572,19.56,7.975]
[1693911398289,31.72,19.57,19.56,7.975]
[1693911398502,7.972,19.567,19.556,7.977]
[1693911398794,25.755,19.569,19.557,27.976]
[1693911398795,7.972,19.569,19.557,27.976]
[1693911402385,31.72,19.57,19.557,27.976]
[1693911402586,2.74162623,19.569,19.557,27.976]
[1693911402999,7.971,19.569,19.557,27.976]
[1693911404005,31.72,19.57,19.557,27.976]
[1693911404795,39.691,19.57,19.557,27.976]
[1693911406201,31.72,19.57,19.557,27.976]
[1693911407399,31.72,19.57,19.557,20.0]
[1693911407581,31.72,19.57,19.557,7.976]
[1693911407904,31.72,19.57,19.561,7.975]
[1693911414909,31.72,19.57,19.552,76.35375652]
[1693911414910,55.0,19.569,19.552,76.35375652]
[1693911415111,31.72,19.56,19.544,56.281]
[1693911415405,39.695,19.56,19.547,7.98]
[1693911415609,24.94461036,19.559,19.544,80.50969685]
[1693911415787,7.976,19.557,19.546,7.981]
[1693911415991,4.94461036,19.556,19.546,7.981]
[1693911416204,4.94461036,19.558,19.546,7.981]
[1693911417706,4.94461036,19.559,19.55,7.979]
[1693911420305,32.91961036,19.559,19.548,7.98]
[1693911420506,32.91961036,19.559,19.546,7.98]
[1693911424709,12.92061036,19.557,19.546,7.98]
[1693911425496,12.92061036,19.557,19.546,47.91861892]
[1693911425891,12.92061036,19.557,19.544,15.00153373]
[1693911426097,12.92061036,19.557,19.542,7.982]
[1693911426398,12.92061036,19.557,19.54,7.983]
[1693911426399,38.69061036,19.557,19.54,7.983]
[1693911426593,186.28286543,19.556,19.54,7.983]
[1693911426806,7.979,19.552,19.54,7.983]
[1693911427412,4.94461036,19.551,19.54,7.983]
[1693911427908,7.979,19.552,19.54,7.983]
[1693911428107,7.979,19.551,19.54,7.983]
[1693911430911,12.92261036,19.553,19.54,7.983]
[1693911437215,12.92261036,19.553,19.54,49.60755242]
[1693911440117,12.92261036,19.553,19.541,62.983]
[1693911443417,7.98,19.549,19.54,41.62455242]
[1693911443620,7.98,19.549,19.539,7.983]
[1693911443820,31.72,19.55,19.539,7.983]
[1693911444406,2.97592888,19.549,19.54,55.0]
[1693911444610,31.72,19.55,19.541,7.983]
[1693911446414,39.699,19.55,19.54,55.0]
[1693911449526,39.699,19.55,19.538,7.984]
[1693911449718,39.699,19.55,19.539,20.0]
[1693911450230,2.52060833,19.549,19.539,20.0]
[1693911450429,7.98,19.549,19.539,20.0]
[1693911452931,7.98,19.549,19.537,20.0]
[1693911453131,7.98,19.549,19.538,55.0]
[1693911453331,7.98,19.549,19.539,20.0]
[1693911453825,7.98,19.549,19.537,7.984]
[1693911454133,7.982,19.543,19.531,15.71508951]
[1693911454331,7.982,19.543,19.53,47.99927621]
[1693911454332,4.94461036,19.542,19.53,47.99927621]
[1693911454535,4.94461036,19.542,19.53,7.987]
[1693911455038,7.982,19.543,19.53,7.987]
[1693911456239,4.94461036,19.542,19.53,7.987]
[1693911456739,7.982,19.543,19.531,55.0]
[1693911456938,7.982,19.543,19.532,7.986]
[1693911457240,7.982,19.543,19.533,55.0]
[1693911458819,7.982,19.543,19.533,62.986]
[1693911459829,7.982,19.543,19.533,55.0]
[1693911460233,7.982,19.543,19.531,7.987]
[1693911460531,4.94461036,19.542,19.531,7.987]
[1693911460725,7.982,19.543,19.531,7.987]
[1693911460925,7.982,19.542,19.531,7.987]
[1693911462037,7.982,19.542,19.53,15.19344933]
[1693911462333,7.982,19.543,19.53,23.18044933]
[1693911462732,4.94461036,19.542,19.53,23.18044933]
[1693911463327,4.94461036,19.547,19.53,48.98644933]
[1693911463527,4.94461036,19.544,19.53,48.98644933]
[1693911464037,12.92661036,19.544,19.53,48.98644933]
[1693911475653,12.92661036,19.544,19.53,88.94141349]
[1693911477233,12.92661036,19.544,19.53,63.13541349]
[1693911482556,12.92661036,19.544,19.53,62.63541349]
[1693911494076,38.71361036,19.544,19.53,62.63541349]
[1693911494677,31.72,19.54,19.53,62.63541349]
[1693911494879,7.984,19.539,19.53,62.63541349]
[1693911495176,31.72,19.54,19.53,62.63541349]
[1693911495572,39.703,19.54,19.53,62.63541349]
[1693911496472,31.72,19.54,19.53,62.63541349]
[1693911501180,39.703,19.54,19.53,62.63541349]
[1693911502482,31.72,19.54,19.53,47.94196416]
[1693911502677,31.72,19.54,19.53,7.987]
[1693911507190,39.703,19.54,19.53,7.987]
[1693911508275,31.72,19.54,19.53,7.987]
[1693911509792,39.703,19.54,19.53,7.987]
[1693911512698,39.703,19.54,19.53,49.48546468]
[1693911524306,31.72,19.54,19.53,49.48546468]
[1693911524611,7.982,19.544,19.53,49.48546468]
[1693911524807,3.60191246,19.543,19.53,49.48546468]
[1693911525203,11.58391246,19.543,19.53,49.48546468]
[1693911530516,31.72,19.54,19.53,49.48546468]
[1693911531314,39.703,19.54,19.53,49.48546468]
[1693911535213,39.703,19.54,19.53,41.49846468]
[1693911535408,39.703,19.54,19.529,7.988]
[1693911535613,0.49999999,19.539,19.525,41.48208801]
[1693911535831,7.985,19.536,19.527,7.988]
[1693911536126,7.985,19.536,19.528,27.988]
[1693911536315,7.985,19.536,19.529,20.0]
[1693911537117,7.985,19.536,19.525,20.0]
[1693911537323,7.985,19.536,19.528,7.988]
[1693911537521,7.985,19.536,19.529,27.987]
[1693911537718,7.985,19.536,19.529,7.987]
[1693911538517,57.514,19.54,19.529,7.987]
[1693911538730,7.984,19.537,19.529,7.987]
[1693911539617,31.72,19.54,19.529,7.987]
[1693911540009,3.28244127,19.542,19.529,7.987]
[1693911541413,3.28244127,19.542,19.53,31.72]
[1693911541820,97.6011,19.543,19.533,33.787]
[1693911542026,2.57693907,19.542,19.533,33.787]
[1693911542524,2.69470995,19.543,19.533,33.787]
[1693911543224,7.982,19.543,19.533,33.787]
[1693911544018,7.982,19.543,19.533,7.986]
[1693911545216,7.981,19.545,19.533,7.986]
[1693911545417,4.39181201,19.544,19.533,7.986]
[1693911547432,12.37381201,19.544,19.533,7.986]
[1693911547835,12.37381201,19.544,19.53,31.72]
[1693911547836,37.9883146,19.544,19.53,7.987]
[1693911554931,7.983,19.541,19.53,7.987]
[1693911555136,4.39181201,19.54,19.53,7.987]
[1693911556129,44.09481201,19.54,19.53,7.987]
[1693911556522,39.703,19.54,19.53,7.987]
[1693911563544,65.496,19.54,19.529,7.988]
[1693911563742,39.703,19.54,19.529,7.988]
[1693911564043,7.984,19.539,19.529,7.988]
[1693911564838,0.49999999,19.538,19.529,7.988]
[1693911565741,7.984,19.539,19.529,7.988]
[1693911568853,39.703,19.54,19.529,7.988]
[1693911569045,0.49999999,19.539,19.529,7.988]
[1693911570556,8.48399999,19.539,19.529,7.988]
[1693911570760,7.984,19.539,19.529,7.988]
[1693911571052,0.49999999,19.538,19.529,7.988]
[1693911573458,8.48399999,19.538,19.529,7.988]
[1693911573759,7.984,19.538,19.529,7.988]
[1693911575645,39.703,19.54,19.529,49.25309722]
[1693911575955,7.984,19.538,19.529,49.25309722]
[1693911576749,39.703,19.54,19.529,49.25309722]
[1693911576950,0.49999999,19.539,19.529,49.25309722]
[1693911577254,8.48399999,19.539,19.529,49.25309722]
[1693911577460,7.984,19.539,19.529,49.25309722]
[1693911578266,31.72,19.54,19.529,75.06009722]
[1693911578455,0.49999999,19.539,19.529,75.06009722]
[1693911579161,39.703,19.54,19.529,75.06009722]
[1693911579966,0.49999999,19.539,19.529,75.06009722]
[1693911581856,8.48399999,19.539,19.529,49.25309722]
[1693911582056,7.984,19.539,19.529,49.25309722]
[1693911583261,0.49999999,19.538,19.529,49.25309722]
[1693911583659,7.984,19.539,19.529,49.25309722]
[1693911583965,33.778,19.539,19.525,20.0]
[1693911584157,0.49999999,19.538,19.526,7.989]
[1693911584475,7.985,19.535,19.527,20.0]
[1693911584652,7.985,19.535,19.527,27.988]
[1693911586660,7.985,19.535,19.527,27.988]
[1693911587260,7.985,19.536,19.527,27.988]
[1693911594574,7.985,19.537,19.527,53.798]
[1693911595379,8.48399999,19.539,19.527,53.798]
[1693911595763,8.48399999,19.539,19.527,33.798]
[1693911595970,55.0,19.538,19.527,7.988]
[1693911596168,7.985,19.535,19.527,7.988]
[1693911596362,0.49999999,19.534,19.525,7.989]
[1693911596561,7.986,19.533,19.525,7.989]
[1693911596760,0.49999999,19.532,19.525,7.989]
[1693911597068,8.48699999,19.532,19.525,7.989]
[1693911597376,0.49999999,19.531,19.525,7.989]
[1693911597557,8.48699999,19.531,19.525,7.989]
[1693911597966,7.987,19.531,19.525,7.989]
[1693911598170,7.986,19.533,19.525,7.989]
[1693911598377,0.49999999,19.532,19.525,7.989]
[1693911598876,8.48599999,19.532,19.525,7.989]
[1693911599074,7.986,19.532,19.525,7.989]
[1693911600280,7.986,19.532,19.523,7.99]
[1693911600578,0.49999999,19.531,19.523,7.99]
[1693911601175,31.72,19.53,19.517,56.359]
[1693911601372,31.72,19.53,19.523,7.99]
[1693911601577,7.987,19.531,19.523,7.99]
[1693911601879,0.49999999,19.535,19.523,7.99]
[1693911602082,0.49999999,19.536,19.523,33.805]
[1693911602766,8.48499999,19.536,19.523,33.805]
[1693911604585,0.49999999,19.536,19.524,55.0]
[1693911604775,0.49999999,19.536,19.527,7.988]
[1693911605084,8.48499999,19.536,19.527,7.988]
[1693911606079,0.49999999,19.536,19.527,64.32]
[1693911606383,2.89024182,19.544,19.532,90.103]
[1693911606587,10.87224182,19.544,19.536,7.985]
[1693911607387,186.28286543,19.554,19.537,75.0]
[1693911607581,186.28286543,19.554,19.542,90.06]
[1693911607769,31.72,19.56,19.543,77.89024182]
[1693911607969,0.86059385,19.559,19.548,90.033]
[1693911608170,0.86059385,19.559,19.549,20.0]
[1693911608377,0.86059385,19.559,19.552,7.978]
[1693911608781,31.72,19.56,19.552,7.978]
[1693911609588,98.0951,19.568,19.552,7.978]
[1693911609882,1.66859946,19.565,19.552,7.978]
[1693911610482,1.66859946,19.565,19.556,7.976]
[1693911613877,9.64159946,19.565,19.556,7.976]
[1693911614378,9.64159946,19.565,19.555,7.977]
[1693911614685,9.64159946,19.565,19.552,25.776]
[1693911615692,9.64159946,19.565,19.556,7.977]
[1693911616190,1.66859946,19.565,19.556,7.977]
[1693911616386,186.28286543,19.566,19.557,20.0]
[1693911616686,186.28286543,19.566,19.559,33.742]
[1693911617889,0.64580871,19.565,19.559,33.742]
[1693911618097,186.28286543,19.566,19.559,33.742]
[1693911618687,98.0951,19.568,19.559,33.742]
[1693911618999,1.06169249,19.567,19.559,33.742]
[1693911619498,1.70350493,19.57,19.559,33.742]
[1693911619794,56.70350493,19.57,19.559,33.742]
[1693911620498,1.70350493,19.57,19.559,33.742]
[1693911624393,2.05436854,19.571,19.559,33.742]
[1693911625693,7.971,19.571,19.559,33.742]
[1693911625893,57.05436854,19.57,19.559,33.742]
[1693911626104,65.02536854,19.57,19.559,33.742]
[1693911626301,20.0,19.569,19.559,7.975]
[1693911626500,7.973,19.566,19.557,7.976]
[1693911626707,2.05436854,19.565,19.558,7.976]
[1693911629107,10.02736854,19.565,19.558,7.976]
[1693911631703,2.05436854,19.565,19.558,7.976]
[1693911639418,10.02636854,19.567,19.558,7.976]
[1693911643208,2.05436854,19.567,19.558,7.976]
[1693911643602,2.05436854,19.569,19.561,7.974]
[1693911643822,57.05436854,19.569,19.561,7.974]
[1693911644416,2.05436854,19.569,19.561,7.974]
[1693911647806,10.02536854,19.569,19.561,7.974]
[1693911648699,2.05436854,19.569,19.561,7.974]
[1693911653324,57.05436854,19.569,19.561,7.974]
[1693911654621,2.05436854,19.569,19.561,7.974]
[1693911655513,2.05436854,19.574,19.561,7.974]
[1693911658812,10.02336854,19.574,19.561,7.974]
[1693911672335,35.77136854,19.574,19.561,7.974]
[1693911672536,55.0,19.573,19.561,7.974]
[1693911672840,2.05436854,19.569,19.561,7.974]
[1693911673334,2.05436854,19.572,19.561,7.974]
[1693911674329,31.76,19.57,19.561,7.974]
[1693911674642,2.05436854,19.569,19.561,7.974]
[1693911674937,31.76,19.57,19.561,7.974]
[1693911675342,0.54325815,19.569,19.561,7.974]
[1693911676239,31.76,19.57,19.561,7.974]
[1693911676441,1.16618919,19.571,19.561,7.974]
[1693911676742,9.13718919,19.571,19.561,7.974]
[1693911676945,7.971,19.571,19.561,7.974]
[1693911678434,31.76,19.57,19.561,7.974]
[1693911678630,7.972,19.568,19.561,7.974]
[1693911679031,7.971,19.569,19.561,7.974]
[1693911679933,0.80881201,19.569,19.561,7.974]
[1693911680134,31.76,19.57,19.561,7.974]
[1693911680947,39.731,19.57,19.561,7.974]
[1693911682134,0.6378646,19.569,19.561,7.974]
[1693911682750,31.76,19.57,19.561,7.974]
[1693911683853,39.731,19.57,19.561,7.974]
[1693911684663,31.76,19.57,19.561,7.974]
[1693911691157,39.731,19.57,19.561,7.974]
[1693911694942,39.731,19.57,19.561,7.474]
[1693911695650,0.58939101,19.569,19.561,7.474]
[1693911695858,104.1126,19.572,19.561,7.474]
[1693911696167,1.37266652,19.571,19.561,7.474]
[1693911708870,96.1426,19.572,19.561,7.474]
[1693911709057,95.6426,19.572,19.561,7.474]
[1693911710857,0.72991074,19.571,19.561,7.474]
[1693911711360,2.05436854,19.576,19.561,7.474]
[1693911711962,10.02336854,19.576,19.561,7.474]
[1693911712871,2.05436854,19.576,19.561,7.474]
[1693911713172,2.05436854,19.577,19.561,7.474]
[1693911713471,10.02236854,19.577,19.561,7.474]
[1693911728577,31.76,19.57,19.561,7.474]
[1693911729573,0.53715218,19.569,19.561,7.474]
[1693911729768,39.731,19.57,19.561,7.474]
[1693911730171,31.76,19.57,19.561,7.474]
[1693911733280,95.7406,19.571,19.561,7.474]
[1693911733784,0.53972447,19.57,19.561,7.474]
[1693911733966,95.7406,19.571,19.561,7.474]
[1693911734969,0.52732361,19.57,19.561,7.474]
[1693911736888,0.67256155,19.571,19.561,7.474]
[1693911737282,7.971,19.571,19.561,7.474]
[1693911737480,25.75,19.573,19.561,7.474]
[1693911737481,7.971,19.569,19.561,7.474]
[1693911744600,31.76,19.57,19.561,7.474]
[1693911745289,0.53257523,19.569,19.561,7.474]
[1693911746101,2.05436854,19.572,19.561,7.474]
[1693911746800,7.971,19.571,19.561,7.474]
[1693911747003,2.05436854,19.57,19.561,7.474]
[1693911747299,10.02536854,19.57,19.561,7.474]
[1693911749987,7.971,19.57,19.561,7.474]
[1693911751082,2.05436854,19.569,19.561,7.474]
[1693911751498,7.971,19.57,19.561,7.474]
[1693911751797,2.05436854,19.569,19.561,7.474]
[1693911754504,7.971,19.57,19.561,7.474]
[1693911755512,10.02436854,19.572,19.561,7.474]
[1693911755703,31.76,19.57,19.561,7.474]
[1693911755905,39.731,19.57,19.561,7.474]
[1693911756207,0.6547392,19.569,19.561,7.474]
[1693911756795,31.76,19.57,19.561,7.474]
[1693911757109,0.56124949,19.569,19.561,7.474]
[1693911757310,8.53324949,19.569,19.561,7.474]
[1693911757609,7.972,19.569,19.561,7.474]
[1693911758304,7.97,19.572,19.561,7.474]
[1693911758608,9.66999081,19.571,19.561,7.474]
[1693911760799,31.76,19.57,19.561,7.474]
[1693911761099,1.69899081,19.569,19.561,7.474]
[1693911763016,9.66999081,19.569,19.561,7.474]
[1693911763209,7.971,19.569,19.561,7.474]
[1693911763894,55.0,19.568,19.553,123.70310249]
[1693911764100,7.974,19.564,19.552,7.978]
[1693911764308,7.974,19.564,19.55,7.979]
[1693911764608,7.974,19.564,19.551,2.89024182]
[1693911764609,55.64251004,19.563,19.551,2.89024182]
[1693911764814,7.975,19.56,19.55,7.979]
[1693911765506,39.735,19.56,19.55,7.979]
[1693911766905,0.52232551,19.559,19.55,7.979]
[1693911767211,7.976,19.558,19.55,7.979]
[1693911770209,31.76,19.56,19.55,7.979]
[1693911771009,39.735,19.56,19.55,7.979]
[1693911771716,31.76,19.56,19.55,7.979]
[1693911774715,98.076,19.562,19.551,55.0]
[1693911775018,98.076,19.562,19.554,7.977]